fUST/lending_fUST_20260625
["ID","MTS","AMOUNT","RATE_DAILY","PERIOD"]
[426338334,1782322587000,191.61778987,0.00037091,110]
[426338337,1782322587000,283.32984594,0.00037091,120]
[426338336,1782322587000,191.61778987,0.00037091,110]
[426338338,1782322587000,163.14017115,0.00037091,120]
[426338335,1782322587000,283.32984594,0.00037091,120]
[426338342,1782322588000,283.32984594,0.00037091,120]
[426338341,1782322588000,283.32984594,0.00037091,120]
[426338340,1782322588000,283.32984594,0.00037091,120]
[426338339,1782322588000,191.61778987,0.00037091,110]
[426338344,1782322589000,283.32984594,0.00037091,120]
[426338343,1782322589000,283.32984594,0.00037091,120]
[426338345,1782322591000,283.32984594,0.00037091,120]
[426338347,1782322591000,283.32984594,0.00037091,120]
[426338346,1782322591000,283.32984594,0.00037091,120]
[426338348,1782322592000,283.32984594,0.00037091,120]
[426338350,1782322593000,283.32984594,0.00037091,120]
[426338349,1782322593000,283.32984594,0.00037091,120]
[426338351,1782322593000,283.32984594,0.00037091,120]
[426338353,1782322716000,500.0,0.00037113,120]
[426338352,1782322716000,500.0,0.00037113,120]
[426338356,1782322717000,500.0,0.00037113,120]
[426338355,1782322717000,500.0,0.00037113,120]
[426338354,1782322717000,500.0,0.00037113,120]
[426338357,1782322720000,500.0,0.00037113,120]
[426338358,1782322815000,254.27725,0.00037113,120]
[426338360,1782322834000,-442.25096999,0.000105,7]
[426338361,1782322834000,-442.25096999,0.0001071,7]
[426338359,1782322834000,-168.19673012,0.000105,7]
[426338364,1782322841000,-442.25096999,0.0001176,7]
[426338363,1782322841000,-442.25096999,0.0001134,7]
[426338362,1782322841000,-442.25096999,0.00011025,7]
[426338365,1782322851000,-150.12955755,0.00013233,14]
[426338367,1782322898000,-300.0,0.00025362,2]
[426338366,1782322898000,-151.0,0.00024,6]
[426338384,1782322899000,-500.0,0.00026461,2]
[426338382,1782322899000,-190.1512707,0.00026461,2]
[426338383,1782322899000,-500.0,0.00026461,2]
[426338381,1782322899000,-500.0,0.00026461,2]
[426338378,1782322899000,-500.0,0.00026461,2]
[426338380,1782322899000,-500.0,0.00026461,2]
[426338377,1782322899000,-153.3814853,0.00026461,2]
[426338379,1782322899000,-500.0,0.00026461,2]
[426338374,1782322899000,-500.0,0.00026461,2]
[426338375,1782322899000,-500.0,0.00026461,2]
[426338373,1782322899000,-184.41647683,0.00026461,2]
[426338372,1782322899000,-500.0,0.00026461,2]
[426338370,1782322899000,-500.0,0.00026461,2]
[426338371,1782322899000,-500.0,0.00026461,2]
[426338368,1782322899000,-459.568673,0.00025363,2]
[426338376,1782322899000,-210.1475048,0.00026461,2]
[426338385,1782322899000,-500.0,0.00026461,2]
[426338369,1782322899000,-506.66916761,0.00026461,2]
[426338386,1782322899000,-500.0,0.00026461,2]
[426338387,1782322899000,-500.0,0.00026461,2]
[426338403,1782322899000,-500.0,0.00026461,2]
[426338402,1782322899000,-500.0,0.00026461,2]
[426338401,1782322899000,-500.0,0.00026461,2]
[426338400,1782322899000,-500.0,0.00026461,2]
[426338398,1782322899000,-500.0,0.00026461,2]
[426338399,1782322899000,-500.0,0.00026461,2]
[426338396,1782322899000,-500.0,0.00026461,2]
[426338397,1782322899000,-500.0,0.00026461,2]
[426338393,1782322899000,-500.0,0.00026461,2]
[426338392,1782322899000,-500.0,0.00026461,2]
[426338394,1782322899000,-417.68494902,0.00026461,2]
[426338391,1782322899000,-500.0,0.00026461,2]
[426338390,1782322899000,-500.0,0.00026461,2]
[426338389,1782322899000,-500.0,0.00026461,2]
[426338388,1782322899000,-500.0,0.00026461,2]
[426338395,1782322899000,-500.0,0.00026461,2]
[426338407,1782322900000,-500.0,0.00026461,2]
[426338405,1782322900000,-500.0,0.00026461,2]
[426338404,1782322900000,-500.0,0.00026461,2]
[426338408,1782322900000,-500.0,0.00026461,2]
[426338406,1782322900000,-500.0,0.00026461,2]
[426338410,1782322900000,-500.0,0.00026461,2]
[426338409,1782322900000,-500.0,0.00026461,2]
[426338413,1782322900000,-500.0,0.00026463,2]
[426338414,1782322900000,-151.0,0.000267,11]
[426338411,1782322900000,-4426.98047274,0.00026462,2]
[426338412,1782322900000,-5540.69555719,0.00026462,2]
[426338415,1782322954000,156.99042007,0.0002,2]
[426338418,1782323115000,293.72124062,0.0001134,7]
[426338417,1782323115000,195.8141604,0.0001071,7]
[426338433,1782323195000,-151.49,0.00029,2]
[426338429,1782323195000,-151.49,0.00029,2]
[426338432,1782323195000,-151.49,0.00029,2]
[426338431,1782323195000,-151.49,0.00029,2]
[426338428,1782323195000,-151.49,0.00029,2]
[426338430,1782323195000,-151.49,0.00029,2]
[426338427,1782323195000,-160.0,0.00028998,2]
[426338424,1782323195000,-300.0,0.00027284,30]
[426338426,1782323195000,-151.0,0.00027293,2]
[426338423,1782323195000,-627.63524243,0.0002702,2]
[426338434,1782323195000,-151.49,0.00029,2]
[426338420,1782323195000,-151.0,0.00025948,2]
[426338422,1782323195000,-5000.0,0.0002675,2]
[426338421,1782323195000,-550.0,0.00026461,2]
[426338419,1782323195000,-5000.0,0.00025688,2]
[426338425,1782323195000,-300.0,0.00027284,30]
[426338435,1782323195000,-151.49,0.00029,2]
[426338449,1782323195000,-151.49,0.00029,2]
[426338436,1782323195000,-151.49,0.00029,2]
[426338451,1782323195000,-151.49,0.00029,2]
[426338452,1782323195000,-151.49,0.00029,2]
[426338453,1782323195000,-15.04934719,0.00029,2]
[426338450,1782323195000,-151.49,0.00029,2]
[426338448,1782323195000,-151.49,0.00029,2]
[426338437,1782323195000,-151.49,0.00029,2]
[426338447,1782323195000,-151.49,0.00029,2]
[426338446,1782323195000,-151.49,0.00029,2]
[426338445,1782323195000,-151.49,0.00029,2]
[426338443,1782323195000,-151.49,0.00029,2]
[426338442,1782323195000,-151.49,0.00029,2]
[426338441,1782323195000,-151.49,0.00029,2]
[426338440,1782323195000,-151.49,0.00029,2]
[426338438,1782323195000,-151.49,0.00029,2]
[426338439,1782323195000,-151.49,0.00029,2]
[426338444,1782323195000,-151.49,0.00029,2]
[426338455,1782323211000,417.15472785,0.00025,30]
[426338454,1782323211000,417.15472785,0.00025,2]
[426338509,1782323431000,-3523.6630136,0.00026181,2]
[426338505,1782323431000,-783.87264066,0.00026181,2]
[426338516,1782323431000,-1679.38422468,0.00026445,2]
[426338518,1782323431000,-575.04505306,0.00026445,2]
[426338512,1782323431000,-495.85429575,0.00026181,2]
[426338514,1782323431000,-196.61004999,0.00026181,2]
[426338645,1782323440000,-151.49,0.00029,2]
[426338644,1782323440000,-151.49,0.00029,2]
[426338648,1782323440000,-151.49,0.00029,2]
[426338658,1782323440000,-151.49,0.00029,2]
[426338655,1782323440000,-151.49,0.00029,2]
[426338652,1782323440000,-151.49,0.00029,2]
[426338649,1782323440000,-151.49,0.00029,2]
[426338657,1782323440000,-151.49,0.00029,2]
[426338654,1782323440000,-151.49,0.00029,2]
[426338638,1782323440000,-151.49,0.00029,2]
[426338660,1782323440000,-151.49,0.00029,2]
[426338650,1782323440000,-151.49,0.00029,2]
[426338651,1782323440000,-151.49,0.00029,2]
[426338661,1782323440000,-151.49,0.00029,2]
[426338656,1782323440000,-151.49,0.00029,2]
[426338663,1782323440000,-151.49,0.00029,2]
[426338670,1782323440000,-151.49,0.00029,2]
[426338659,1782323440000,-151.49,0.00029,2]
[426338646,1782323440000,-151.49,0.00029,2]
[426338643,1782323440000,-151.49,0.00029,2]
[426338647,1782323440000,-151.49,0.00029,2]
[426338622,1782323440000,-2745.57072226,0.00026445,2]
[426338632,1782323440000,-151.49,0.00029,2]
[426338623,1782323440000,-1383.1415135,0.00026712,2]
[426338635,1782323440000,-151.49,0.00029,2]
[426338625,1782323440000,-160.0,0.00027406,2]
[426338633,1782323440000,-151.49,0.00029,2]
[426338636,1782323440000,-151.49,0.00029,2]
[426338634,1782323440000,-151.49,0.00029,2]
[426338626,1782323440000,-176.82896378,0.00028423,7]
[426338627,1782323440000,-139.58385961,0.00028991,7]
[426338631,1782323440000,-151.49,0.00029,2]
[426338629,1782323440000,-136.44065281,0.00029,2]
[426338630,1782323440000,-151.49,0.00029,2]
[426338628,1782323440000,-101.36560758,0.00028991,7]
[426338637,1782323440000,-151.49,0.00029,2]
[426338641,1782323440000,-151.49,0.00029,2]
[426338639,1782323440000,-151.49,0.00029,2]
[426338640,1782323440000,-151.49,0.00029,2]
[426338642,1782323440000,-151.49,0.00029,2]
[426338662,1782323440000,-151.49,0.00029,2]
[426338664,1782323440000,-151.49,0.00029,2]
[426338653,1782323440000,-151.49,0.00029,2]
[426338671,1782323440000,-151.0,0.000293,10]
[426338697,1782323440000,-985.66965266,0.0003335,7]
[426338694,1782323440000,-985.66965266,0.0003335,7]
[426338696,1782323440000,-985.66965266,0.0003335,7]
[426338699,1782323440000,-985.66965266,0.0003335,7]
[426338665,1782323440000,-151.49,0.00029,2]
[426338689,1782323440000,-154.33698136,0.00033147,15]
[426338693,1782323440000,-985.66965266,0.0003335,7]
[426338691,1782323440000,-1000.0,0.0003335,2]
[426338695,1782323440000,-985.66965266,0.0003335,7]
[426338692,1782323440000,-938.49856922,0.0003335,2]
[426338700,1782323440000,-985.66965266,0.0003335,7]
[426338707,1782323440000,-985.66965266,0.0003335,7]
[426338708,1782323440000,-985.66965266,0.0003335,7]
[426338702,1782323440000,-985.66965266,0.0003335,7]
[426338703,1782323440000,-985.66965266,0.0003335,7]
[426338705,1782323440000,-985.66965266,0.0003335,7]
[426338704,1782323440000,-985.66965266,0.0003335,7]
[426338706,1782323440000,-985.66965266,0.0003335,7]
[426338701,1782323440000,-985.66965266,0.0003335,7]
[426338698,1782323440000,-985.66965266,0.0003335,7]
[426338690,1782323440000,-156.26137422,0.00033251,2]
[426338686,1782323440000,-151.0,0.000319,13]
[426338672,1782323440000,-1757.94914162,0.00029834,4]
[426338668,1782323440000,-86.07085838,0.00029,2]
[426338688,1782323440000,-326.96647293,0.000328,120]
[426338673,1782323440000,-263.97857288,0.00029834,4]
[426338669,1782323440000,-151.49,0.00029,2]
[426338666,1782323440000,-151.49,0.00029,2]
[426338674,1782323440000,-517.04238726,0.00029924,2]
[426338675,1782323440000,-500.0,0.00029924,2]
[426338683,1782323440000,-154.33698136,0.0003089,9]
[426338667,1782323440000,-65.41914162,0.00029,2]
[426338684,1782323440000,-326.96647293,0.000309,120]
[426338676,1782323440000,-379.74277211,0.00029924,2]
[426338677,1782323440000,-500.0,0.00029924,2]
[426338679,1782323440000,-326.96647293,0.0003,120]
[426338680,1782323440000,-2245.1337369,0.00030027,120]
[426338678,1782323440000,-8126.0136288,0.00029925,120]
[426338681,1782323440000,-154.33698137,0.00030137,2]
[426338682,1782323440000,-165.5499812,0.00030752,2]
[426338687,1782323440000,-1000.0,0.00032626,30]
[426338685,1782323440000,-326.96647293,0.000318,120]
[426338718,1782323441000,-1034.95313529,0.0003335,7]
[426338719,1782323441000,-1034.95313529,0.0003335,7]
[426338724,1782323441000,-166.89469511,0.00034926,10]
[426338716,1782323441000,-1034.95313529,0.0003335,7]
[426338717,1782323441000,-1034.95313529,0.0003335,7]
[426338722,1782323441000,-326.96647293,0.000338,120]
[426338714,1782323441000,-1034.95313529,0.0003335,7]
[426338723,1782323441000,-151.0,0.000345,11]
[426338713,1782323441000,-1034.95313529,0.0003335,7]
[426338712,1782323441000,-985.66965266,0.0003335,7]
[426338711,1782323441000,-985.66965266,0.0003335,7]
[426338710,1782323441000,-985.66965266,0.0003335,7]
[426338709,1782323441000,-985.66965266,0.0003335,7]
[426338715,1782323441000,-1034.95313529,0.0003335,7]
[426338720,1782323441000,-1034.95313529,0.0003335,7]
[426338721,1782323441000,-70000.0,0.00033351,2]
[426338725,1782323441000,-896.71360932,0.00035616,120]
[426338740,1782323441000,-153.0,0.00037122,120]
[426338741,1782323441000,-211318.93651751,0.00037122,2]
[426338738,1782323441000,-248.0,0.00037113,120]
[426338739,1782323441000,-160.0,0.00037119,120]
[426338737,1782323441000,-152.0,0.00037113,120]
[426338730,1782323441000,-197.0,0.00037091,120]
[426338727,1782323441000,-154.33698136,0.0003691,22]
[426338733,1782323441000,-227.10809299,0.00037092,120]
[426338731,1782323441000,-151.0,0.00037091,6]
[426338726,1782323441000,-1195.97551668,0.00036022,8]
[426338734,1782323441000,-600.0,0.00037092,2]
[426338735,1782323441000,-151.0,0.000371,16]
[426338736,1782323441000,-173.044,0.00037113,47]
[426338729,1782323441000,-3129.7837139,0.0003709,2]
[426338728,1782323441000,-2632.297969,0.0003702,2]
[426338732,1782323441000,-166.0184864,0.00037092,120]
[426338895,1782323443000,-1582.43717662,0.00037122,2]
[426338897,1782323443000,-270.75324636,0.00037122,2]
[426338860,1782323443000,-0.00538249,0.00037122,2]
[426338829,1782323443000,-3472.4124041,0.00037122,2]
[426338827,1782323443000,-200.0,0.00033544,2]
[426338894,1782323443000,-200.0,0.00032801,2]
[426338963,1782323446000,-29749.99999999,0.00037122,2]
[426338961,1782323446000,-1319.26282965,0.00037122,2]
[426338962,1782323446000,-837.79691481,0.00037122,2]
[426338960,1782323446000,-411.828,0.00037122,2]
[426338984,1782323484000,500.0,0.00037122,60]
[426338985,1782323485000,500.0,0.00037122,60]
[426338986,1782323485000,510.38,0.00037122,60]
[426338989,1782323506000,151.0,0.00037122,120]
[426338991,1782323507000,157.22281963,0.00037122,120]
[426338990,1782323507000,156.587,0.00037122,120]
[426338992,1782323508000,157.22281963,0.00037122,120]
[426338995,1782323508000,216.50109851,0.00037122,120]
[426338994,1782323508000,157.22281963,0.00037122,120]
[426338993,1782323508000,162.380719,0.00037122,120]
[426338997,1782323509000,549.09975702,0.00037122,120]
[426338996,1782323509000,157.22281963,0.00037122,120]
[426339001,1782323573000,499.850045,0.00037122,60]
[426339004,1782323650000,500.0,0.00037121,60]
[426339003,1782323650000,500.0,0.00037121,60]
[426339002,1782323650000,500.0,0.00037121,60]
[426339006,1782323651000,500.0,0.00037121,60]
[426339005,1782323651000,500.0,0.00037121,60]
[426339009,1782323652000,500.0,0.00037121,60]
[426339007,1782323652000,500.0,0.00037121,60]
[426339008,1782323652000,500.0,0.00037121,60]
[426339011,1782323653000,312.35540201,0.00037121,60]
[426339010,1782323653000,500.0,0.00037121,60]
[426339014,1782323724000,532.9,0.00037121,60]
[426339013,1782323724000,532.9,0.00037121,60]
[426339018,1782323725000,532.9,0.00037121,60]
[426339017,1782323725000,532.9,0.00037121,60]
[426339016,1782323725000,532.9,0.00037121,60]
[426339015,1782323725000,532.9,0.00037121,60]
[426339019,1782323726000,532.9,0.00037121,60]
[426339020,1782323726000,532.9,0.00037121,60]
[426339021,1782323726000,532.9,0.00037121,60]
[426339022,1782323727000,532.9,0.00037121,60]
[426339024,1782323727000,532.9,0.00037121,60]
[426339023,1782323727000,532.9,0.00037121,60]
[426339028,1782323728000,532.9,0.00037121,60]
[426339027,1782323728000,532.9,0.00037121,60]
[426339026,1782323728000,532.9,0.00037121,60]
[426339025,1782323728000,532.9,0.00037121,60]
[426339031,1782323729000,532.9,0.00037121,60]
[426339030,1782323729000,532.9,0.00037121,60]
[426339029,1782323729000,532.9,0.00037121,60]
[426339034,1782323730000,532.9,0.00037121,60]
[426339033,1782323730000,532.9,0.00037121,60]
[426339032,1782323730000,532.9,0.00037121,60]
[426339036,1782323731000,533.0,0.00037121,60]
[426339035,1782323731000,532.9,0.00037121,60]
[426339037,1782323776000,4912736.61555046,0.00037121,30]
[426339039,1782323777000,1501.58681593,0.00018,2]
[426339038,1782323777000,8936.31945106,0.00018,2]
[426339040,1782323792000,2159.66963914,0.000222,2]
[426339041,1782323835000,322.48143924,0.00015,2]
[426339046,1782323844000,10000.0,0.00021,2]
[426339045,1782323844000,10000.0,0.00021,2]
[426339044,1782323844000,10000.0,0.00021,2]
[426339043,1782323844000,3805.1937153,0.00021,2]
[426339042,1782323844000,2211.06839039,0.00013,2]
[426339047,1782323850000,2639.54184249,0.00015,2]
[426339048,1782323857000,424.13855072,0.0001,2]
[426339050,1782323861000,2043.71385443,0.00012,2]
[426339049,1782323861000,6936.31960679,0.00012,2]
[426339051,1782323862000,242.25320983,0.00037121,120]
[426339056,1782323864000,10000.0,0.000118,5]
[426339057,1782323864000,332.07810899,0.000118,5]
[426339054,1782323864000,10000.0,0.000118,5]
[426339053,1782323864000,6851.00576231,0.000118,5]
[426339055,1782323864000,10000.0,0.000118,5]
[426339052,1782323864000,1105.28038326,0.00016,2]
[426339060,1782323866000,-869.52388816,0.0002,2]
[426339059,1782323866000,-808.86910554,0.0002,2]
[426339061,1782323871000,40037.64096175,0.00019279,30]
[426339062,1782324114000,150.0,0.00037212,120]
[426339063,1782324228000,500.0,0.00037205,60]
[426339065,1782324228000,500.0,0.00037205,60]
[426339064,1782324228000,500.0,0.00037205,60]
[426339069,1782324229000,500.0,0.00037205,60]
[426339068,1782324229000,500.0,0.00037205,60]
[426339067,1782324229000,500.0,0.00037205,60]
[426339066,1782324229000,500.0,0.00037205,60]
[426339072,1782324230000,500.0,0.00037205,60]
[426339071,1782324230000,500.0,0.00037205,60]
[426339070,1782324230000,500.0,0.00037205,60]
[426339076,1782324231000,500.0,0.00037205,60]
[426339075,1782324231000,500.0,0.00037205,60]
[426339074,1782324231000,500.0,0.00037205,60]
[426339073,1782324231000,500.0,0.00037205,60]
[426339077,1782324232000,500.0,0.00037205,60]
[426339079,1782324232000,500.0,0.00037205,60]
[426339078,1782324232000,500.0,0.00037205,60]
[426339080,1782324236000,500.0,0.00037205,60]
[426339083,1782324237000,500.0,0.00037205,60]
[426339082,1782324237000,500.0,0.00037205,60]
[426339081,1782324237000,500.0,0.00037205,60]
[426339087,1782324238000,500.0,0.00037205,60]
[426339086,1782324238000,500.0,0.00037205,60]
[426339085,1782324238000,500.0,0.00037205,60]
[426339084,1782324238000,500.0,0.00037205,60]
[426339088,1782324239000,500.0,0.00037205,60]
[426339089,1782324239000,395.45915535,0.00037205,60]
[426339090,1782324240000,600000.0,0.00037205,30]
[426339093,1782324245000,1999.99,0.00037205,30]
[426339092,1782324245000,2000.0,0.00037205,30]
[426339091,1782324245000,850.6,0.00037205,30]
[426339094,1782324431000,1999.99,0.00037205,30]
[426339095,1782324431000,2000.06,0.00037205,30]
[426339096,1782324431000,2000.02,0.00037205,30]
[426339097,1782324431000,2000.08,0.00037205,30]
[426339099,1782324431000,2000.07,0.00037205,30]
[426339098,1782324431000,2000.0,0.00037205,30]
[426339100,1782324431000,2000.05,0.00037205,30]
[426339101,1782324431000,2000.03,0.00037205,30]
[426339102,1782324431000,2000.01,0.00037205,30]
[426339103,1782324431000,2000.04,0.00037205,30]
[426339115,1782324447000,-500.0,0.00019998,2]
[426339112,1782324447000,-500.0,0.00019998,2]
[426339114,1782324447000,-500.0,0.00019998,2]
[426339113,1782324447000,-500.0,0.00019998,2]
[426339111,1782324447000,-517.04238726,0.00019998,2]
[426339110,1782324447000,-500.0,0.00019998,2]
[426339107,1782324447000,-3573.22607799,0.00019899,2]
[426339117,1782324447000,-234.13106499,0.00019998,2]
[426339108,1782324447000,-206.41716342,0.000199,2]
[426339106,1782324447000,-151.0,0.00019013,2]
[426339105,1782324447000,-263.9785729,0.00018998,4]
[426339104,1782324447000,-281.34290982,0.00015341,5]
[426339109,1782324447000,-300.0,0.00019997,2]
[426339116,1782324447000,-500.0,0.00019998,2]
[426339126,1782324447000,-248.0,0.00019999,2]
[426339119,1782324447000,-500.0,0.00019998,2]
[426339132,1782324447000,-1192.2469157,0.00019999,2]
[426339118,1782324447000,-500.0,0.00019998,2]
[426339129,1782324447000,-1192.2469157,0.00019999,2]
[426339128,1782324447000,-1192.2469157,0.00019999,2]
[426339130,1782324447000,-1192.2469157,0.00019999,2]
[426339127,1782324447000,-1192.2469157,0.00019999,2]
[426339131,1782324447000,-1192.2469157,0.00019999,2]
[426339125,1782324447000,-152.0,0.00019999,2]
[426339123,1782324447000,-500.0,0.00019999,2]
[426339120,1782324447000,-1499.23912855,0.00019998,2]
[426339121,1782324447000,-500.0,0.00019999,2]
[426339122,1782324447000,-500.0,0.00019999,2]
[426339124,1782324447000,-551.72,0.00019999,2]
[426339140,1782324448000,-1192.2469157,0.00019999,2]
[426339142,1782324448000,-1192.2469157,0.00019999,2]
[426339141,1782324448000,-153.04913239,0.00019999,2]
[426339139,1782324448000,-1192.2469157,0.00019999,2]
[426339138,1782324448000,-1192.2469157,0.00019999,2]
[426339135,1782324448000,-1192.2469157,0.00019999,2]
[426339136,1782324448000,-791.68045377,0.00019999,2]
[426339134,1782324448000,-1192.2469157,0.00019999,2]
[426339133,1782324448000,-1192.2469157,0.00019999,2]
[426339144,1782324448000,-1192.2469157,0.00019999,2]
[426339137,1782324448000,-400.56646193,0.00019999,2]
[426339146,1782324448000,-1192.2469157,0.00019999,2]
[426339157,1782324448000,-1252.95979709,0.00019999,2]
[426339143,1782324448000,-1192.2469157,0.00019999,2]
[426339158,1782324448000,-909.2292186,0.0002,2]
[426339155,1782324448000,-1287.62666895,0.00019999,2]
[426339152,1782324448000,-1287.62666895,0.00019999,2]
[426339153,1782324448000,-1287.62666895,0.00019999,2]
[426339154,1782324448000,-1287.62666895,0.00019999,2]
[426339156,1782324448000,-1252.95979709,0.00019999,2]
[426339150,1782324448000,-1287.62666895,0.00019999,2]
[426339149,1782324448000,-1287.62666895,0.00019999,2]
[426339148,1782324448000,-1287.62666895,0.00019999,2]
[426339147,1782324448000,-1192.2469157,0.00019999,2]
[426339151,1782324448000,-1287.62666895,0.00019999,2]
[426339145,1782324448000,-1192.2469157,0.00019999,2]
[426339159,1782324487000,500.0,0.00037205,60]
[426339162,1782324488000,500.0,0.00037205,60]
[426339161,1782324488000,500.0,0.00037205,60]
[426339160,1782324488000,500.0,0.00037205,60]
[426339163,1782324489000,500.0,0.00037205,60]
[426339166,1782324489000,500.0,0.00037205,60]
[426339165,1782324489000,500.0,0.00037205,60]
[426339164,1782324489000,500.0,0.00037205,60]
[426339167,1782324490000,500.0,0.00037205,60]
[426339168,1782324490000,500.0,0.00037205,60]
[426339169,1782324491000,167.6809273,0.00037205,60]
[426339174,1782324575000,2000.02,0.00037205,30]
[426339172,1782324575000,2000.1,0.00037205,30]
[426339173,1782324575000,2000.06,0.00037205,30]
[426339171,1782324575000,2000.05,0.00037205,30]
[426339170,1782324575000,1999.99,0.00037205,30]
[426339175,1782324576000,2000.08,0.00037205,30]
[426339177,1782324576000,2000.0,0.00037205,30]
[426339176,1782324576000,2000.04,0.00037205,30]
[426339178,1782324576000,2000.07,0.00037205,30]
[426339180,1782324576000,2000.03,0.00037205,30]
[426339181,1782324576000,2000.09,0.00037205,30]
[426339182,1782324576000,2000.01,0.00037205,30]
[426339183,1782324576000,2000.11,0.00037205,30]
[426339184,1782324576000,2000.12,0.00037205,30]
[426339179,1782324576000,1999.9,0.00037205,30]
[426339185,1782324615000,1249.87,0.00037205,60]
[426339188,1782324616000,1249.87,0.00037205,60]
[426339187,1782324616000,1249.87,0.00037205,60]
[426339186,1782324616000,1249.87,0.00037205,60]
[426339189,1782324617000,1249.87,0.00037205,60]
[426339190,1782324617000,1249.87,0.00037205,60]
[426339191,1782324619000,1249.87,0.00037205,60]
[426339194,1782324620000,1249.87,0.00037205,60]
[426339193,1782324620000,1249.87,0.00037205,60]
[426339192,1782324620000,1249.87,0.00037205,60]
[426339197,1782324621000,1249.87,0.00037205,60]
[426339196,1782324621000,1249.87,0.00037205,60]
[426339195,1782324621000,1249.87,0.00037205,60]
[426339199,1782324622000,1249.87,0.00037205,60]
[426339198,1782324622000,1249.87,0.00037205,60]
[426339203,1782324623000,1249.87,0.00037205,60]
[426339202,1782324623000,1249.87,0.00037205,60]
[426339201,1782324623000,1249.87,0.00037205,60]
[426339200,1782324623000,1249.87,0.00037205,60]
[426339204,1782324624000,1249.87,0.00037205,60]
[426339206,1782324624000,1249.87,0.00037205,60]
[426339205,1782324624000,1249.87,0.00037205,60]
[426339208,1782324625000,1249.99,0.00037205,60]
[426339207,1782324625000,1249.87,0.00037205,60]
[426339235,1782324632000,-11628.68822688,0.0002,2]
[426339220,1782324632000,-149.0,0.00019169,2]
[426339221,1782324632000,-5161.016657,0.00019169,2]
[426339223,1782324632000,-2452.30335653,0.00019169,2]
[426339222,1782324632000,-363.69361527,0.00019169,2]
[426339225,1782324632000,-333.96365641,0.00019672,2]
[426339233,1782324632000,-500.0,0.00019998,2]
[426339237,1782324632000,-11573.51075269,0.0002,2]
[426339219,1782324632000,-151.0,0.00018809,2]
[426339226,1782324632000,-385.75328218,0.00019672,2]
[426339227,1782324632000,-280.28306141,0.00019672,2]
[426339228,1782324632000,-300.0,0.00019899,2]
[426339232,1782324632000,-506.66916761,0.00019998,2]
[426339230,1782324632000,-3126.57281825,0.000199,2]
[426339229,1782324632000,-184.66664816,0.000199,2]
[426339231,1782324632000,-350.4,0.0001999,3]
[426339238,1782324632000,-322.005,0.0002,2]
[426339224,1782324632000,-151.0,0.0001939,2]
[426339492,1782324638000,-5274.08921093,0.00023,2]
[426339494,1782324638000,-6252.9791974,0.0002524,2]
[426339505,1782324638000,-425.0,0.00029,120]
[426339504,1782324638000,-240.0,0.00029,2]
[426339493,1782324638000,-270000.0,0.00025,15]
[426339495,1782324638000,-500.0,0.00025362,2]
[426339498,1782324638000,-7120.48229235,0.00028423,7]
[426339503,1782324638000,-500.0,0.00028997,60]